lending/lending_fUSD_20240610
["ID","MTS","AMOUNT","RATE_DAILY","PERIOD"]
[328951150,1718026253360,-500.0,0.00029041,4]
[328951152,1718026253369,-500.0,0.00029041,4]
[328951154,1718026253378,-500.0,0.00029041,4]
[328951156,1718026253388,-531.86072344,0.00029041,4]
[328951158,1718026253398,-500.0,0.00029041,4]
[328951160,1718026253407,-500.0,0.00029041,4]
[328951162,1718026253416,-534.20443432,0.00029041,4]
[328951164,1718026253426,-500.0,0.00029041,4]
[328951166,1718026253436,-70.4764128,0.00029041,4]
[328951170,1718026253458,-429.5235872,0.00029041,4]
[328951172,1718026253467,-523.35120397,0.00029041,4]
[328951174,1718026253477,-500.0,0.00029041,4]
[328951176,1718026253486,-588.03897793,0.00029041,4]
[328951178,1718026253496,-518.07698723,0.00029041,4]
[328951180,1718026253505,-352.57932538,0.00029041,4]
[328951182,1718026253519,-147.42067462,0.00029041,4]
[328951184,1718026253528,-500.0,0.00029041,4]
[328951186,1718026253538,-500.0,0.00029041,4]
[328951188,1718026253547,-500.0,0.00029041,4]
[328951190,1718026253557,-576.92644213,0.00029041,4]
[328951192,1718026253568,-70.65677482,0.00029041,4]
[328951210,1718026253741,-221.78235539,0.000219,2]
[328951212,1718026253752,-249.11616379,0.00024457,2]
[328951214,1718026253764,-707.02783621,0.00024457,2]
[328951228,1718026253880,-429.34322518,0.00029041,4]
[328951231,1718026253915,-500.0,0.00029041,4]
[328951233,1718026253926,-190.65299603,0.00029041,4]
[328951235,1718026253937,-500.0,0.00029041,4]
[328951237,1718026253948,-500.0,0.00029041,4]
[328951239,1718026253957,-515.79213407,0.00029041,4]
[328951241,1718026253967,-123.58380851,0.00029041,4]
[328951244,1718026253982,-395.25689623,0.00029041,4]
[328951246,1718026253992,-218.27310377,0.00029041,4]
[328951251,1718026254034,-281.72689623,0.00029041,4]
[328951253,1718026254044,-95.60368583,0.00029041,4]
[328951263,1718026254131,-404.39631417,0.00029041,4]
[328951265,1718026254141,-517.550974,0.00029041,4]
[328951267,1718026254151,-535.26798341,0.00029041,4]
[328951268,1718026254161,-500.0,0.00029041,4]
[328951271,1718026254171,-535.49284391,0.00029041,4]
[328951273,1718026254182,-500.0,0.00029041,4]
[328951275,1718026254191,-500.0,0.00029041,4]
[328951277,1718026254201,-541.97474582,0.00029041,4]
[328951279,1718026254211,-242.25056723,0.00029041,4]
[328952263,1718026484884,943.0,0.000273,60]
[328952266,1718026553075,161.35,0.00032701,30]
[328952271,1718027056296,5400.0,0.00032663,30]
[328952272,1718027122147,2294.22880573,0.00010148,2]
[328952273,1718027144447,150.0,0.0001,2]
[328952275,1718027178558,165.6,9.938e-05,2]
[328952276,1718027182761,183.02,9.938e-05,2]
[328952278,1718027230161,-155.0,0.00010243,2]
[328952279,1718027230191,-1.53030732,0.00010243,2]
[328952280,1718027234095,-282.95218659,0.00010242,2]
[328952281,1718027234116,-687.25630943,0.00010243,2]
[328952282,1718027234138,-6696.96437156,0.00010243,2]
[328952283,1718027240707,-204.22484113,0.00010243,2]
[328952284,1718027240731,-518.70574326,0.00010244,2]
[328952285,1718027240760,-606.35,0.0001025,2]
[328952286,1718027240790,-162.80154305,0.00011064,2]
[328952287,1718027240814,-150.0,0.00011205,2]
[328952288,1718027240839,-1920.02206875,0.00011223,2]
[328952289,1718027241006,-3122.985941,0.00011546,2]
[328952290,1718027241045,-416.44,0.00011604,2]
[328952291,1718027241070,-10142.18907445,0.000118,2]
[328952293,1718027346167,-1249.34786736,0.00011799,2]
[328952294,1718027346192,-150.0,0.00011799,2]
[328952295,1718027346218,-300.0,0.00011799,2]
[328952296,1718027346249,-1895.60399119,0.000118,2]
[328952297,1718027346276,-2867.47,0.000118,2]
[328952298,1718027346303,-1026.01,0.000118,2]
[328952299,1718027346329,-10977.35791684,0.000124,2]
[328952300,1718027346355,-2171.82,0.000124,2]
[328952301,1718027346381,-226.56,0.00012421,2]
[328952302,1718027346407,-250.0,0.00012423,2]
[328952303,1718027346434,-500.0,0.00012449,2]
[328952304,1718027346459,-921.44,0.00012483,2]
[328952305,1718027346495,-606.35,0.00012513,2]
[328952306,1718027346520,-1395.66,0.00012548,2]
[328952307,1718027346546,-84.8401168,0.00012575,2]
[328952310,1718027357140,-104.6298832,0.00012575,2]
[328952311,1718027357167,-2194.16,0.00012603,2]
[328952312,1718027357190,-488.52,0.00012772,2]
[328952313,1718027357217,-5070.4056593,0.00012902,2]
[328952326,1718027433391,-1209.6207124,0.000129,2]
[328952327,1718027433402,-688.78661675,0.00012901,2]
[328952328,1718027433411,-886.07762366,0.00012902,2]
[328952329,1718027433423,-19587.87671704,0.00012902,2]
[328952330,1718027433432,-23900.0,0.00012997,2]
[328952331,1718027433442,-9412.76249665,0.00013,2]
[328952332,1718027433453,-8122.46,0.00013,2]
[328952333,1718027433463,-499.99,0.00013,2]
[328952334,1718027433472,-5014.07065723,0.0001305,2]
[328952335,1718027433481,-177.58,0.0001317,2]
[328952336,1718027433491,-164.28935887,0.00013298,2]
[328952337,1718027433501,-6224.3398857,0.00013361,2]
[328952338,1718027433512,-968.04,0.00013361,2]
[328952339,1718027433523,-2877.79574582,0.00013361,2]
[328952340,1718027433534,-371.6925449,0.00013361,2]
[328952341,1718027433546,-800.07111468,0.00013361,2]
[328952342,1718027433559,-1390.06,0.00013361,2]
[328952343,1718027433571,-9542.6907089,0.00013361,2]
[328952344,1718027433581,-200.0,0.00013376,2]
[328952345,1718027433591,-1000.0,0.00013376,2]
[328952346,1718027433601,-182.83,0.00013376,2]
[328952347,1718027433611,-250.0,0.00013376,2]
[328952348,1718027433620,-851.0731185,0.00013376,2]
[328952349,1718027433705,-3783.8568815,0.00013376,2]
[328952350,1718027433715,-153.04,0.00013376,2]
[328952351,1718027433726,-359.3,0.00013376,2]
[328952352,1718027433736,-154.52,0.00013477,2]
[328952353,1718027433746,-154.52,0.00013531,2]
[328952354,1718027433756,-154.52,0.00013585,2]
[328952355,1718027433767,-154.52,0.00013639,2]
[328952356,1718027433778,-154.52,0.00013693,2]
[328952357,1718027433788,-2751.0,0.00013699,2]
[328952358,1718027433798,-698.06,0.00013699,2]
[328952359,1718027433810,-154.52,0.00013747,2]
[328952360,1718027433819,-154.52,0.00013801,2]
[328952361,1718027433829,-154.52,0.00013855,2]
[328952362,1718027433838,-696.0995,0.000139,2]
[328952363,1718027434006,-5655.6554,0.000139,2]
[328952364,1718027434028,-299.99,0.000139,2]
[328952365,1718027434038,-8707.6649,0.000139,2]
[328952366,1718027434048,-154.52,0.00013909,2]
[328952368,1718027434059,-628.22571242,0.00013917,2]
[328952370,1718027434074,-324.19873311,0.00013917,2]
[328952372,1718027434084,-179.6194651,0.00013917,2]
[328952374,1718027434094,-154.52,0.00013963,2]
[328952376,1718027434105,-173.65351561,0.0001399,2]
[328952378,1718027434115,-173.65351561,0.0001399,2]
[328952379,1718027434125,-153.58,0.0001399,2]
[328952380,1718027434135,-153.58,0.0001399,2]
[328952381,1718027434146,-173.65351561,0.0001399,2]
[328952382,1718027434156,-481.85167187,0.00013998,2]
[328952383,1718027434166,-2374.14832813,0.00013998,2]
[328952384,1718027434176,-715.81385658,0.00013998,2]
[328952385,1718027434186,-195.79238693,0.00013998,2]
[328952386,1718027434197,-5702.27299753,0.00013998,2]
[328952387,1718027434469,-1022.92774519,0.00013998,2]
[328952388,1718027434479,-238.21449077,0.00013998,2]
[328952389,1718027434488,-239.88319152,0.00013998,2]
[328952390,1718027434498,-282.86325091,0.00013998,2]
[328952391,1718027434508,-182.80768612,0.00013998,2]
[328952392,1718027434518,-7377.93429772,0.00013998,2]
[328952404,1718027439297,-942.35655589,0.00012899,2]
[328952405,1718027439311,-3597.6238895,0.00013998,2]
[328952406,1718027439321,-155.0,0.00013999,2]
[328952407,1718027439332,-2350.65016854,0.00013999,2]
[328952408,1718027439343,-3055.19030181,0.00014,2]
[328952409,1718027439354,-14175.72903144,0.00014,2]
[328952410,1718027439366,-1032.57626509,0.00014,2]
[328952411,1718027439379,-267.4029094,0.00014,2]
[328952412,1718027439497,-1e-08,0.00014,2]
[328952413,1718027439510,-476.93557439,0.00014,2]
[328952414,1718027439523,-4371.61400396,0.00014,2]
[328952415,1718027439535,-1291.06,0.00014,2]
[328952416,1718027439547,-368.4034386,0.00014,2]
[328952417,1718027439561,-875.33626534,0.00014,2]
[328952418,1718027439574,-42554.65535255,0.00014,2]
[328952419,1718027439736,-1171.11856861,0.00014,2]
[328952420,1718027439749,-9526.93612909,0.00014,2]
[328952421,1718027439761,-52989.83884914,0.00014,2]
[328952422,1718027439778,-1361.36,0.00014,2]
[328952423,1718027439790,-1245.03939917,0.00014,2]
[328952424,1718027439802,-3453.0,0.00014,2]
[328952425,1718027439820,-4739.3824166,0.00014,2]
[328952426,1718027439832,-380.17047413,0.00014,2]
[328952427,1718027439845,-2754.65974741,0.00014,2]
[328952428,1718027439859,-416.32160749,0.00014,2]
[328952429,1718027440057,-1587.05875518,0.00014,2]
[328952430,1718027440074,-396.96657,0.00014,2]
[328952431,1718027440250,-51480.76652093,0.00014,2]
[328952432,1718027440270,-1429749.25305024,0.00014,2]
[328952433,1718027440283,-873.81182588,0.00014,2]
[328952441,1718027444907,-79456.64531,0.00014,2]
[328952442,1718027444920,-69403.80351552,0.00014,2]
[328952443,1718027446465,-1032.74759355,0.00014,2]
[328952444,1718027446477,-476.98507602,0.00014,2]
[328952445,1718027446489,-703.90320097,0.00014,2]
[328952446,1718027446502,-58272.11042342,0.00014,2]
[328952447,1718027446514,-20252.7292446,0.00014,2]
[328952448,1718027446527,-398129.10013807,0.00014,2]
[328952449,1718027446539,-242342.71647725,0.00014,2]
[328952450,1718027446551,-412.05918344,0.00014,2]
[328952451,1718027446564,-3174.82,0.00014,2]
[328952452,1718027446578,-392.66360108,0.00014,2]
[328952453,1718027446590,-384.34999965,0.00014,2]
[328952457,1718027446735,-1425.37930718,0.00014,2]
[328952462,1718027446775,-1.00560531,0.00014,2]
[328952494,1718027447058,-57247.88331724,0.00014,2]
[328952496,1718027447075,-440.99237249,0.00014,2]
[328952498,1718027447087,-628.18,0.00014,2]
[328952501,1718027447100,-1963.86783739,0.00014,2]
[328952503,1718027447113,-574.92905729,0.00014,2]
[328952505,1718027447128,-1310.42936115,0.00014,2]
[328952507,1718027447140,-3487.42764328,0.00014,2]
[328952510,1718027447154,-1780.95012414,0.00014,2]
[328952514,1718027447187,-5341.56197791,0.00014,2]
[328952516,1718027447201,-763.11526888,0.00014,2]
[328952518,1718027447213,-1853.6965244,0.00014,2]
[328952520,1718027447225,-584.96366402,0.00014,2]
[328952523,1718027447237,-17070.53985228,0.00014,2]
[328952525,1718027447251,-731.98818224,0.00014,2]
[328952527,1718027447263,-330.3755325,0.00014,2]
[328952530,1718027447276,-681.83583395,0.00014,2]
[328952533,1718027447288,-378.703701,0.00014,2]
[328952535,1718027447300,-3865.81,0.00014,2]
[328952557,1718027447535,-379.8437606,0.00014,2]
[328952559,1718027447548,-2675.62430438,0.00014,2]
[328952561,1718027447560,-5275.91882177,0.00014,2]
[328952562,1718027447575,-1049.57575,0.00014,2]
[328952563,1718027447745,-221.78235539,0.00013917,2]
[328952564,1718027447755,-155.59166738,0.00014,2]
[328952566,1718027447767,-930.552031,0.00014,2]
[328952568,1718027447780,-633.56217276,0.00014,2]
[328952570,1718027447793,-10138.75151659,0.00014,2]
[328952572,1718027447806,-699.46801073,0.00014,2]
[328952577,1718027447849,-1350.30640999,0.00014,2]
[328952580,1718027447862,-2192.31003432,0.00014,2]
[328952582,1718027447875,-2254.77948346,0.00014,2]
[328952607,1718027448140,-1768.46075324,0.00014,2]
[328952610,1718027448153,-4578.30555982,0.00014,2]
[328952639,1718027448449,-3369.0,0.00014,2]
[328952641,1718027448465,-619.11740836,0.00014,2]
[328952643,1718027448478,-324.23779872,0.00014,2]
[328952645,1718027448490,-404.03325043,0.00014,2]
[328952655,1718027448577,-2e-08,0.00014,2]
[328952671,1718027448731,-1526.96547813,0.00014,2]
[328952695,1718027448972,-39566.95407704,0.00014,2]
[328953290,1718027455481,150.0,0.00012257,2]
[328953859,1718027462727,2553.55168877,9.677e-05,2]
[328954811,1718027484820,2553.55168877,9.677e-05,2]
[328954812,1718027500412,105759.70959789,9.677e-05,2]
[328954813,1718027500445,2000.0,9.677e-05,2]
[328954814,1718027500473,2000.0,9.677e-05,2]
[328954815,1718027500499,2000.0,9.677e-05,2]
[328954816,1718027500537,137601.33505565,9.677e-05,2]
[328954817,1718027500575,79300.0,9.677e-05,2]
[328954818,1718027500607,33850.0,9.677e-05,2]
[328954819,1718027500831,-156.40620763,9.677e-05,2]
[328954821,1718027668632,-205.67039254,7.25e-05,2]
[328954822,1718027668655,-424.35038744,7.251e-05,2]
[328954823,1718027668681,-525.40490644,7.252e-05,2]
[328954824,1718027668705,-295.83967052,7.253e-05,2]
[328954825,1718027668731,-155.0,7.253e-05,2]
[328954826,1718027668756,-518.70574326,7.254e-05,2]
[328954827,1718027668781,-217.44360157,7.254e-05,2]
[328954828,1718027668808,-345.72385954,7.254e-05,2]
[328954829,1718027668832,-155.0,7.254e-05,2]
[328954830,1718027668857,-419.89302594,7.258e-05,2]
[328954831,1718027722825,163.72187852,7.258e-05,2]
[328954832,1718027722850,163.72187852,7.258e-05,2]
[328954833,1718027722874,163.72187852,7.258e-05,2]
[328954834,1718027722898,163.72187852,7.258e-05,2]
[328954835,1718027722922,163.72187852,7.258e-05,2]
[328954836,1718027722947,163.72187852,7.258e-05,2]
[328954837,1718027722972,163.72187852,7.258e-05,2]
[328954838,1718027722996,163.72187852,7.258e-05,2]
[328954839,1718027723020,163.72187852,7.258e-05,2]
[328954840,1718027723043,4000.0,7.258e-05,2]
[328954841,1718027723068,4000.0,7.258e-05,2]
[328954842,1718027723092,4000.0,7.258e-05,2]
[328954843,1718027723116,4000.0,7.258e-05,2]
[328954844,1718027723141,4000.0,7.258e-05,2]
[328954845,1718027723170,3189.89220384,7.258e-05,2]
[328954846,1718027723264,155.0,7.258e-05,2]
[328954847,1718027724720,8.72187852,7.258e-05,2]
[328954848,1718027724896,163.72187852,7.258e-05,2]
[328954849,1718027724936,163.72187852,7.258e-05,2]
[328954850,1718027724962,163.72187852,7.258e-05,2]
[328954851,1718027724988,163.72187852,7.258e-05,2]
[328954852,1718027725014,163.72187852,7.258e-05,2]
[328954853,1718027725038,163.72187852,7.258e-05,2]
[328954854,1718027725064,163.72187852,7.258e-05,2]
[328954855,1718027725101,163.72187852,7.258e-05,2]
[328954856,1718027725128,45.15067655,7.258e-05,2]
[328954857,1718027725190,118.57120197,7.258e-05,2]
[328954858,1718027725220,163.72187852,7.258e-05,2]
[328954859,1718027725249,80.69038715,7.258e-05,2]
[328954860,1718027726573,163.72187852,6.895e-05,2]
[328954861,1718027726598,163.72187852,6.895e-05,2]
[328954862,1718027726623,163.72187852,6.895e-05,2]
[328954863,1718027726649,163.72187852,6.895e-05,2]
[328954864,1718027726673,163.72187852,6.895e-05,2]
[328954865,1718027726699,139.37521284,6.895e-05,2]
[328954866,1718027732569,163.72187806,7.258e-05,2]
[328954867,1718027732596,163.72187852,7.258e-05,2]
[328954868,1718027732620,163.72187852,7.258e-05,2]
[328954869,1718027732646,163.72187852,7.258e-05,2]
[328954870,1718027732670,163.72187852,7.258e-05,2]
[328954871,1718027732696,810.10779616,7.258e-05,2]
[328954872,1718027732722,4000.0,7.258e-05,2]
[328954873,1718027732751,4000.0,7.258e-05,2]
[328954874,1718027732938,4000.0,7.258e-05,2]
[328954875,1718027732971,4000.0,7.258e-05,2]
[328954876,1718027732997,2150.75706921,7.258e-05,2]
[328954877,1718027733047,289.91140799,7.258e-05,2]
[328954878,1718027737053,362.98346764,7.258e-05,2]
[328954879,1718027737093,1196.34805516,7.258e-05,2]
[328954880,1718027737117,4000.0,7.258e-05,2]
[328954881,1718027737142,4000.0,7.258e-05,2]
[328954882,1718027737438,-150.0,7.258e-05,2]
[328954883,1718027737539,-150.0,7.258e-05,2]
[328954884,1718027737648,-150.0,7.258e-05,2]
[328954885,1718027737707,-150.0,7.258e-05,2]
[328954886,1718027737799,-150.0,7.258e-05,2]
[328954887,1718027737851,-150.0,7.258e-05,2]
[328954888,1718027737888,-150.0,7.258e-05,2]
[328954889,1718027737948,-150.0,7.258e-05,2]
[328954890,1718027737983,-150.0,7.258e-05,2]
[328954891,1718027738017,-150.0,7.258e-05,2]
[328954892,1718027738058,-150.0,7.258e-05,2]
[328954893,1718027738119,-150.0,7.258e-05,2]
[328954894,1718027738169,-150.0,7.258e-05,2]
[328954895,1718027738209,-150.0,7.258e-05,2]
[328954896,1718027738261,-150.0,7.258e-05,2]
[328954897,1718027738302,-150.0,7.258e-05,2]
[328954898,1718027738341,-150.0,7.258e-05,2]
[328954899,1718027738443,-150.0,7.258e-05,2]
[328954900,1718027738500,-150.0,7.258e-05,2]
[328954901,1718027738539,-150.0,7.258e-05,2]
[328954902,1718027738585,736.96841275,6.895e-05,2]
[328954903,1718027738611,221.01619269,6.895e-05,2]
[328954904,1718027738645,-150.0,7.258e-05,2]
[328954905,1718027738859,-150.0,7.258e-05,2]
[328954906,1718027738906,-150.0,7.258e-05,2]
[328954907,1718027739012,-150.0,7.258e-05,2]
[328954908,1718027739060,-150.0,7.258e-05,2]
[328954909,1718027739100,-150.0,7.258e-05,2]
[328954910,1718027739134,-150.0,7.258e-05,2]
[328954911,1718027739171,-150.0,7.258e-05,2]
[328954912,1718027739201,-150.0,7.258e-05,2]
[328954913,1718027739242,-150.0,7.258e-05,2]
[328954914,1718027739281,-150.0,7.258e-05,2]
[328954915,1718027739322,-150.0,7.258e-05,2]
[328954916,1718027739355,-150.0,7.258e-05,2]
[328954917,1718027739394,-150.0,7.258e-05,2]
[328954918,1718027739437,-150.0,7.258e-05,2]
[328954919,1718027739468,-150.0,7.258e-05,2]
[328954920,1718027739502,-150.0,7.258e-05,2]
[328954921,1718027739537,-150.0,7.258e-05,2]
[328954922,1718027739579,-150.0,7.258e-05,2]
[328954923,1718027739616,-150.0,7.258e-05,2]
[328954924,1718027739655,-150.0,7.258e-05,2]
[328954925,1718027739685,-150.0,7.258e-05,2]
[328954926,1718027739715,-150.0,7.258e-05,2]
[328954927,1718027739748,-150.0,7.258e-05,2]
[328954928,1718027739777,-150.0,7.258e-05,2]
[328954929,1718027739819,-150.0,7.258e-05,2]
[328954930,1718027739857,-150.0,7.258e-05,2]
[328954931,1718027739894,-150.0,7.258e-05,2]
[328954932,1718027739926,-150.0,7.258e-05,2]
[328954933,1718027739957,-150.0,7.258e-05,2]
[328954934,1718027740000,-150.0,7.258e-05,2]
[328954935,1718027740040,-150.0,7.258e-05,2]
[328954936,1718027740075,-199.16183724,7.258e-05,2]
[328954937,1718027740112,-150.0,7.258e-05,2]
[328954938,1718027740142,-150.0,7.258e-05,2]
[328954939,1718027740180,-150.0,7.258e-05,2]
[328954940,1718027740231,-150.0,7.258e-05,2]
[328954941,1718027740288,-150.0,7.258e-05,2]
[328954942,1718027740340,-150.0,7.258e-05,2]
[328954943,1718027740399,-150.0,7.258e-05,2]
[328954944,1718027740448,-150.0,7.258e-05,2]
[328954945,1718027740490,-150.0,7.258e-05,2]
[328954946,1718027740554,-150.0,7.258e-05,2]
[328954947,1718027742845,-150.0,7.258e-05,2]
[328954948,1718027743015,-150.0,7.258e-05,2]
[328954949,1718027744712,2385.97714624,5.444e-05,2]
[328954950,1718027758476,957.98460544,6.895e-05,2]
[328954951,1718027762708,435.02205563,5.444e-05,2]
[328954952,1718027762734,1959.97794437,5.444e-05,2]
[328954953,1718027769371,688.78661675,7.257e-05,2]
[328954954,1718027775231,289.91140799,6.895e-05,2]
[328954955,1718027776523,770.81281961,6.895e-05,2]
[328954956,1718027780994,290.51121128,6.895e-05,2]
[328954957,1718027781018,1073.13637195,6.895e-05,2]
[328954958,1718027783528,362.98346764,6.895e-05,2]
[328954959,1718027785429,2563.88016041,6.895e-05,2]
[328954960,1718027785458,4000.0,6.895e-05,2]
[328954961,1718027785489,223777.50466174,6.895e-05,2]
[328954962,1718027789235,289.91140799,6.895e-05,2]
[328954963,1718027797034,1363.64758323,6.895e-05,2]
[328954964,1718027799369,309.10177723,6.895e-05,2]
[328954965,1718027801298,2359.97064487,6.895e-05,2]
[328954966,1718027807256,289.91140799,6.895e-05,2]
[328954967,1718027816923,1363.64758323,6.895e-05,2]
[328954968,1718027823901,-263.13284192,7.257e-05,2]
[328954969,1718027823933,-305.85334688,7.258e-05,2]
[328954970,1718027823964,-160.0,7.258e-05,2]
[328954971,1718027823996,-19758.58446142,7.258e-05,2]
[328954972,1718027824027,-155.0,7.258e-05,2]
[328954973,1718027824057,-390.14171897,8.708e-05,2]
[328954974,1718027827251,197.99524914,6.895e-05,2]
[328954975,1718027833298,187.85258917,6.895e-05,2]
[328954976,1718027893250,289.91140799,6.895e-05,2]
[328954977,1718027894724,2553.55168877,5.171e-05,2]
[328954978,1718027900608,19779.47425751,6.895e-05,2]
[328954979,1718027902906,347.82893612,6.895e-05,2]
[328954980,1718027903883,947.931432,6.895e-05,2]
[328954981,1718027907892,155.0,6.895e-05,2]
[328954982,1718027910737,2553.55168877,5.171e-05,2]
[328954983,1718027911246,289.91140799,6.895e-05,2]
[328954984,1718027918604,19779.47425751,6.895e-05,2]
[328954985,1718027919897,212.02692394,6.895e-05,2]
[328954986,1718027924827,347.82893612,6.895e-05,2]
[328954987,1718027925883,1097.931432,6.895e-05,2]
[328954988,1718027932719,244.58731995,5.171e-05,2]
[328954989,1718027940606,10028.30423145,6.895e-05,2]
[328954990,1718028003444,150.0,6.895e-05,2]
[328954991,1718028003779,150.0,6.895e-05,2]
[328954992,1718028003960,150.0,6.895e-05,2]
[328954993,1718028004203,150.0,6.895e-05,2]
[328954994,1718028004415,150.0,6.895e-05,2]
[328954995,1718028004806,150.0,6.895e-05,2]
[328954996,1718028004866,150.0,6.895e-05,2]
[328954997,1718028005079,150.0,6.895e-05,2]
[328954998,1718028005285,150.0,6.895e-05,2]
[328954999,1718028005512,150.0,6.895e-05,2]
[328955000,1718028005730,150.0,6.895e-05,2]
[328955001,1718028308307,-542.8956905,9.56e-05,2]
[328955002,1718028308354,-424.35038744,9.561e-05,2]
[328955003,1718028308387,-328.03196452,9.566e-05,2]
[328955004,1718028308418,-1168.2232,9.567e-05,2]
[328955005,1718028308447,-150.0,9.674e-05,2]
[328955006,1718028308476,-195.87692784,9.675e-05,2]
[328955007,1718028308505,-174.20196835,9.675e-05,2]
[328955008,1718028308533,-1584.0047979,9.675e-05,2]
[328955009,1718028308562,-205.2059502,9.675e-05,2]
[328955010,1718028308590,-525.09009724,9.675e-05,2]
[328955011,1718028308619,-218.06287764,9.676e-05,2]
[328955012,1718028308649,-382.83909569,9.676e-05,2]
[328955013,1718028308677,-155.0,9.676e-05,2]
[328955014,1718028308705,-155.37726229,9.676e-05,2]
[328955015,1718028308733,-206.03170677,0.0001,2]
[328955017,1718028377224,155.0,0.0001,2]
[328955018,1718028397231,155.0,0.0001,2]
[328955019,1718028415280,155.0,0.0001,2]
[328955020,1718028424725,183.03,9.809e-05,2]
[328955022,1718028549167,-155.0,0.00010344,2]
[328955023,1718028549190,-941.67693938,0.00010344,2]
[328955024,1718028549215,-675.78,0.00010345,2]
[328955025,1718028549244,-424.35038744,0.00012193,2]
[328955026,1718028549268,-340.74,0.00012244,2]
[328955027,1718028549294,-1000.0,0.00012259,2]
[328955028,1718028549318,-150.0,0.00012267,2]
[328955029,1718028549342,-2343.49,0.00012268,2]
[328955030,1718028549368,-8726.85209955,0.00012268,2]
[328955031,1718028551120,-8441.62703322,0.00012268,2]
[328955032,1718028557125,-6731.52086723,0.00012268,2]
[328955033,1718028557149,-250.0,0.00012274,2]
[328955034,1718028557172,-1708.46687918,0.00012284,2]
[328955035,1718028561144,-43.52312082,0.00012284,2]
[328955036,1718028561168,-139.71846676,0.00012298,2]
[328955037,1718028561224,-26.19153324,0.00012298,2]
[328955038,1718028566690,160.87667664,0.00012598,2]
[328955045,1718028632996,-380.82981456,0.00012597,2]
[328955046,1718028633009,-43.52057288,0.00012597,2]
[328955047,1718028633020,-180.69395492,0.00012598,2]
[328955048,1718028633031,-551.33947708,0.00012598,2]
[328955049,1718028633042,-675.78,0.00012609,2]
[328955050,1718028633052,-162.80154305,0.00012676,2]
[328955051,1718028633062,-686.19,0.00012776,2]
[328955052,1718028633072,-686.19,0.00012779,2]
[328955053,1718028633082,-686.19,0.00012782,2]
[328955054,1718028633092,-686.19,0.00012786,2]
[328955055,1718028633104,-1853.99,0.00012786,2]
[328955056,1718028633114,-686.19,0.00012789,2]
[328955057,1718028633125,-686.19,0.00012793,2]
[328955058,1718028633136,-499.99,0.00012793,2]
[328955059,1718028633146,-686.19,0.00012796,2]
[328955060,1718028633156,-686.19,0.00012799,2]
[328955061,1718028633166,-686.19,0.00012803,2]
[328955062,1718028633176,-686.19,0.00012806,2]
[328955063,1718028633190,-686.19,0.00012809,2]
[328955064,1718028633201,-686.19,0.00012813,2]
[328955065,1718028633211,-686.19,0.00012816,2]
[328955066,1718028633223,-686.19,0.00012819,2]
[328955067,1718028633233,-686.19,0.00012823,2]
[328955068,1718028633243,-686.19,0.00012826,2]
[328955069,1718028633254,-686.19,0.0001283,2]
[328955070,1718028633265,-686.19,0.00012833,2]
[328955071,1718028633275,-686.19,0.00012836,2]
[328955072,1718028633285,-686.19,0.0001284,2]
[328955073,1718028633295,-738.5467845,0.00012892,2]
[328955074,1718028633306,-4760.11205541,0.00012902,2]
[328955075,1718028633316,-299.75188144,0.00012902,2]
[328955076,1718028633326,-20271.54851503,0.00012902,2]
[328955077,1718028633337,-250.0,0.00013034,2]
[328955078,1718028633347,-154.52,0.00013071,2]
[328955079,1718028633357,-154.52,0.00013298,2]
[328955080,1718028633367,-167.66,0.00013419,2]
[328955081,1718028633377,-154.52,0.00013525,2]
[328955082,1718028633387,-349.03,0.00013699,2]
[328955083,1718028633398,-184.72,0.00013699,2]
[328955084,1718028633408,-500.0,0.00013744,2]
[328955085,1718028633418,-154.52,0.00013752,2]
[328955086,1718028633428,-1000.0,0.00013791,2]
[328955087,1718028633441,-549.13198539,0.0001386,2]